{"text_format":"1","workbook":"xlsx","n_sheets":2,"sheets":["4041-1","Sheet1"],"not_rendered":{"charts":0,"images":5,"macros":1,"external_links":0,"defined_names":18,"comments":1,"pivot_tables":0},"unopened":[],"bounds":{"document_bytes":16777216,"sheet_cells":100000,"rows_first":2000,"rows_last":500,"rows_between":2000,"halvings":0,"cell_chars":16384,"cell_head_chars":4096},"cells_cut":0,"cells_raw":0,"read":"whole","date_system":"1900"}

{"sheet":"4041-1","index":0,"n_rows":60,"n_cols":91,"rows_kept":60,"cut":false,"hidden":true,"merged":[[46,0,46,1],[46,2,46,21],[47,2,47,21],[37,0,37,3],[37,4,37,21],[38,0,38,3],[39,0,40,3],[39,4,45,9],[39,10,45,15],[39,16,45,21],[41,0,42,3],[43,0,43,3],[44,0,45,3],[34,0,34,3],[34,4,34,21],[35,0,35,3],[35,4,35,21],[36,0,36,3],[36,4,36,9],[36,10,36,15],[36,16,36,21],[32,0,32,3],[32,4,32,9],[32,10,32,15],[32,16,32,21],[33,0,33,3],[33,4,33,9],[33,10,33,15],[33,16,33,21],[30,0,30,3],[30,4,30,9],[30,10,30,15],[30,16,30,21],[31,0,31,3],[31,4,31,9],[31,10,31,15],[31,16,31,21],[26,0,27,3],[26,4,27,9],[26,10,27,15],[26,16,27,21],[28,0,28,3],[28,4,28,9],[28,10,28,15],[28,16,28,21],[23,19,23,21],[24,0,24,3],[24,4,24,9],[24,10,24,15],[24,16,24,21],[25,0,25,3],[25,4,25,9],[25,10,25,15],[25,16,25,21],[23,0,23,3],[23,4,23,6],[23,7,23,9],[23,10,23,12],[23,13,23,15],[23,16,23,18],[20,0,20,3],[20,4,20,9],[20,10,20,15],[20,16,20,21],[22,10,22,15],[22,16,22,21],[18,0,18,3],[18,4,18,9],[18,10,18,15],[18,16,18,21],[19,10,19,15],[19,16,19,21],[13,2,13,3],[14,2,14,3],[14,5,14,6],[14,8,14,9],[14,11,14,12],[14,14,14,15],[14,17,14,18],[14,20,14,21],[17,0,17,3],[17,4,17,9],[17,10,17,15],[17,16,17,21],[15,0,15,3],[15,4,15,7],[15,8,15,21],[16,0,16,3],[16,4,16,9],[16,10,16,15],[16,16,16,21],[0,18,2,21],[1,5,1,16],[3,13,3,15],[3,16,3,21],[4,13,4,15],[4,16,4,21],[10,4,10,9],[10,10,10,15],[10,16,10,21],[5,0,9,1],[5,2,5,3],[20,36,21,36],[21,0,22,3],[21,4,21,21],[22,4,22,9],[5,4,5,21],[10,0,10,3],[19,0,19,3],[19,4,19,9],[6,2,7,3],[6,5,6,8],[7,4,7,21],[8,2,9,3],[8,5,8,21],[9,5,9,12],[9,14,9,21],[11,0,11,3],[11,4,11,9],[11,10,11,15],[11,16,11,21],[12,0,14,1],[12,2,12,3],[12,4,12,21]]}
["V.24.4",null,null,null,null,null,null,null,null,null,null,null,null,null,null,null,null,null,null,null,null,null,null,null,null,null,null,{"$f":"E6","v":0},null,null,null,null,null,null,null,null,null,null,null,null,null,null,null,null,"1.圧縮","φ100","水中養生(20±2℃)","不要",null,null,null,null,null,null,null,null,null,null,null,null,null,null,null,null,null,null,null,null,null,null,null,null,null,null,null,null,null,null,{"$f":"E6&CHAR(13)&F7&CHAR(13) &E8&CHAR(13)&F9&CHAR(13) &F10&CHAR(13)&O10& CHAR(13)&E12&CHAR(13)&F15&CHAR(13)&I15&CHAR(13)&E17&CHAR(13)&E18&CHAR(13)&E19& CHAR(13)&E20&CHAR(13)&E23&CHAR(13)&E24&CHAR(13)&H24&CHAR(13)&E25&CHAR(13)&E26&CHAR(13)&E27&CHAR(13)&E29","v":"\r\r\r\r\r\r\r\r\r\r\r\r\r\r\r\r\r\r\r"},null,null,null,null,null,{"$f":"E6&CHAR(13)&F7&CHAR(13) &E8&CHAR(13)&F9&CHAR(13) &F10&CHAR(13)&O10& CHAR(13)&K12&CHAR(13)&L15&CHAR(13)&O15&CHAR(13)&K17&CHAR(13)&K18&CHAR(13)&K19& CHAR(13)&K20&CHAR(13)&K23&CHAR(13)&K24&CHAR(13)&N24&CHAR(13)&K25&CHAR(13)&K26&CHAR(13)&K27&CHAR(13)&K29","v":"\r\r\r\r\r\r\r\r\r\r\r\r\r\r\r\r\r\r\r"},null,null,null,null,null,{"$f":"E6&CHAR(13)&F7&CHAR(13) &E8&CHAR(13)&F9&CHAR(13) &F10&CHAR(13)&O10& CHAR(13)&Q12&CHAR(13)&R15&CHAR(13)&U15&CHAR(13)&Q17&CHAR(13)&Q18&CHAR(13)&Q19& CHAR(13)&Q20&CHAR(13)&Q23&CHAR(13)&Q24&CHAR(13)&T24&CHAR(13)&Q25&CHAR(13)&Q26&CHAR(13)&Q27&CHAR(13)&Q29","v":"\r\r\r\r\r\r\r\r\r\r\r\r\r\r\r\r\r\r\r"}]
[null,null,null,null,null,"試　験　依　頼　書",null,null,null,null,null,null,null,null,null,null,null,null,null,null,null,null,null,null,null,null,null,{"$f":"F7","v":0},null,null,null,null,null,null,null,null,null,null,null,null,null,null,null,null,"2.曲げ","φ125","標準養生","JNLA標章のみ必要"]
[null,null,null,null,null,null,null,null,null,null,null,null,null,null,null,null,null,null,null,null,null,null,null,null,null,null,null,{"$f":"E8","v":0},null,null,null,null,null,null,null,null,null,null,null,null,null,null,null,null,null,"□150","現場水中養生","標章・測定不確かさ両方必要"]
["一般社団法人　岡山県コンクリート技術センター　殿",null,null,null,null,null,null,null,null,null,null,null,null,"受付年月日",null,null,null,null,null,null,null,null,null,null,null,null,null,{"$f":"F9","v":0},null,null,null,null,null,null,null,null,null,null,null,null,null,null,null,null,null,null,"現場空中養生"]
[null,null,null,null,null,null,null,null,null,null,null,"太枠内依頼者記入欄",null,"受付番号",null,null,null,null,null,null,null,null,null,"依頼書の記入方法",null,null,null,{"$f":"F10","v":0},null,null,null,null,null,null,null,null,null,null,null,null,null,null,null,null,null,null,"現場封かん養生"]
["顧客",null,"会社名",null,null,null,null,null,null,null,null,null,null,null,null,null,null,null,null,null,null,null,null,"当試験依頼書は、依頼件数3組まで使用できます。",null,null,null,{"$f":"O10","v":0}]
[null,null,"住　所",null,"(〒",null,null,null,null,")",null,null,null,null,null,null,null,null,null,null,null,null,null,"当試験依頼書はマクロを使用しています。有効にしてください。",null,null,null,{"$f":"E12","v":0}]
[null,null,null,null,null,null,null,null,null,null,null,null,null,null,null,null,null,null,null,null,null,null,null,"セル及び行列の追加削除及び移動は行わないでください",null,null,null,{"$f":"F15","v":0}]
[null,null,"担当者",null,"氏名",null,null,null,null,null,null,null,null,null,null,null,null,null,null,null,null,null,null,"黄色着色部に記入をお願いします。",null,null,null,{"$f":"I15","v":0}]
[null,null,null,null,"TEL:",null,null,null,null,null,null,null,null,"FAX:",null,null,null,null,null,null,null,null,null,null,null,null,null,{"$f":"E17","v":0}]
["試験依頼件数",null,null,null,1,null,null,null,null,null,2,null,null,null,null,null,3,null,null,null,null,null,null,null,null,null,null,{"$f":"E18","v":0}]
["報告書宛名",null,null,null,null,null,null,null,null,null,null,null,null,null,null,null,null,null,null,null,null,null,null,null,null,null,null,{"$f":"E19","v":"00:00:00"}]
["試験\n項目",null,"試験方法",null,"1．JISA1108:2018圧縮強度試験　2．JISA1106:2018曲げ強度試験 ",null,null,null,null,null,null,null,null,null,null,null,null,null,null,null,null,null,null,"試験方法・形状","：","リストから選んでください",null,{"$f":"E20","v":"00:00:00"}]
[null,null,"形状寸法",null," 1．φ100×200mm  　2．φ125×250mm    3．150×150×530mm",null,null,null,null,null,null,null,null,null,null,null,null,null,null,null,null,null,null,null,null,null,null,{"$f":"E23","v":0}]
[null,null,"番号選択",null,"方法",null,null,"形状",null,null,"方法",null,null,"形状",null,null,"方法",null,null,"形状",null,null,null,null,null,null,null,{"$f":"E24","v":0}]
["供試体作製方法",null,null,null,"JIS A 1132:2020",null,null,null,"※5.5(又は6.4)の供試体の形状及び寸法の許容差については、当方が責任を負います。測定は不要です。",null,null,null,null,null,null,null,null,null,null,null,null,null,null,null,null,null,null,{"$f":"H24","v":0}]
["工事名",null,null,null,null,null,null,null,null,null,null,null,null,null,null,null,null,null,null,null,null,null,null,null,null,null,null,{"$f":"E25","v":0}]
["打込み箇所",null,null,null,null,null,null,null,null,null,null,null,null,null,null,null,null,null,null,null,null,null,null,"打込み箇所","：","㎥等の環境依存文字の単位は使用できないのでご注意願います",null,{"$f":"E26","v":0}]
["採取年月日",null,null,null,null,null,null,null,null,null,null,null,null,null,null,null,null,null,null,null,null,null,null,"採 取 年 月 日","：","日付の書式設定をしていますので4月1日の場合は「4/1」と入力ください",null,{"$f":"E27","v":0}]
["試験希望日",null,null,null,null,null,null,null,null,null,null,null,null,null,null,null,null,null,null,null,null,null,null,"試験希望日","：","同上。尚、当センター休日は避けてください。",null,{"$f":"E29","v":0}]
["材齢",null,null,null,{"$f":"IF(E20=\"\",\"\",E20-E19)","v":""},null,null,null,null,null,{"$f":"IF(K20=\"\",\"\",K20-K19)","v":""},null,null,null,null,null,{"$f":"IF(Q20=\"\",\"\",Q20-Q19)","v":""},null,null,null,null,null,null,null,null,"材齢は計算しますので入力は不要です",null,{"$f":"E6","v":0}]
["養生方法",null,null,null,"1．水中養生(20±2℃)　2．標準養生　3．現場水中養生　4．その他（養生方法を記入）",null,null,null,null,null,null,null,null,null,null,null,null,null,null,null,null,null,null,"養生方法","：","リストから選んでください。",null,{"$f":"F7","v":0}]
[null,null,null,null,null,null,null,null,null,null,null,null,null,null,null,null,null,null,null,null,null,null,null,null,null,null,null,{"$f":"E8","v":0}]
["呼び方",null,null,null,null,null,null,null,null,null,null,null,null,null,null,null,null,null,null,null,null,null,null,"呼び方","：","JIS A 5308の製品の呼び方を参考に記入してください。",null,{"$f":"F9","v":0}]
["実測スランプ又は\nスランプフロー(cm)",null,null,null,null,null,null,null,null,null,null,null,null,null,null,null,null,null,null,null,null,null,null,null,null,null,null,{"$f":"F10","v":0}]
["実測空気量(％)",null,null,null,null,null,null,null,null,null,null,null,null,null,null,null,null,null,null,null,null,null,null,null,null,null,null,{"$f":"O10","v":0}]
["備　　　　　考",null,null,null,null,null,null,null,null,null,null,null,null,null,null,null,null,null,null,null,null,null,null,"備考","：","報告書に記載してほしい内容等を記入してください。",null,{"$f":"K12","v":0}]
[null,null,null,null,null,null,null,null,null,null,null,null,null,null,null,null,null,null,null,null,null,null,null,null,null,"㎥等の環境依存文字の単位は使用できないのでご注意願います",null,{"$f":"L15","v":0}]
["JNLA標章・測定不確かさ",null,null,null,null,null,null,null,null,null,null,null,null,null,null,null,null,null,null,null,null,null,null,"標章・不確かさ","：","JNLA標章の表記が必要な方は「標章のみ必要」を選択してください",null,{"$f":"O15","v":0}]
["試験所記入欄",null,null,null,null,null,null,null,null,null,null,null,null,null,null,null,null,null,null,null,null,null,null,null,null,"JISサーベイランス対象の方は「両方必要」を選択してください",null,{"$f":"K17","v":0}]
["受付番号",null,null,null,null,null,null,null,null,null,null,null,null,null,null,null,null,null,null,null,null,null,null,"印刷を行うと、QRコード付の依頼書が印刷されます。",null,null,null,{"$f":"K18","v":0}]
["試験方法確認",null,null,null,null,null,null,null,null,null,null,null,null,null,null,null,null,null,null,null,null,null,null,"QRコードが表示されない場合は、マクロを有効にしてください。",null,null,null,{"$f":"K19","v":"00:00:00"}]
["形状寸法・状態",null,null,null,null,null,null,null,null,null,null,null,null,null,null,null,null,null,null,null,null,null,null,"印刷されて、供試体と共に持参されるか、",null,null,null,{"$f":"K20","v":"00:00:00"}]
["保管(養生)",null,null,null,null,null,null,null,null,null,null,null,null,null,null,null,null,null,null,null,null,null,null,"このエクセルファイルをメールに添付して試験依頼をお願いします。",null,null,null,{"$f":"K23","v":0}]
["試料持込日",null,null,null,null,null,null,null,null,null,null,null,null,null,null,null,null,null,null,null,null,null,null,"メールされると、センターでの待ち時間が少なくて済みますので",null,null,null,{"$f":"K24","v":0}]
["試料処分方法",null,null,null,null,null,null,null,null,null,null,null,null,null,null,null,null,null,null,null,null,null,null,"メールでの依頼を推奨いたします。",null,null,null,{"$f":"N24","v":0}]
["識別番号",null,null,null,null,null,null,null,null,null,null,null,null,null,null,null,null,null,null,null,null,null,null,null,null,null,null,{"$f":"K25","v":0}]
["報告書発行予定日",null,null,null,null,null,null,null,null,null,null,null,null,null,null,null,null,null,null,null,null,null,null,null,null,null,null,{"$f":"K26","v":0}]
["試験時の立会",null,null,null,null,"□　有",null,null,"□　無",null,null,null,null,null,null,null,null,null,null,null,null,null,null,null,null,null,null,{"$f":"K27","v":0}]
["受付者",null,null,null,null,null,null,null,null,null,null,null,null,null,null,null,null,null,null,null,null,null,null,null,null,null,null,{"$f":"K29","v":0}]
[null,null,null,null,null,null,null,null,null,null,null,null,null,null,null,null,null,null,null,null,null,null,null,null,null,null,null,{"$f":"E6","v":0}]
[null,null,null,null,null,null,null,null,null,null,null,null,null,null,null,null,null,null,null,null,null,null,null,null,null,null,null,{"$f":"F7","v":0}]
[null,null,null,null,null,null,null,null,null,null,null,null,null,null,null,null,null,null,null,null,null,null,null,null,null,null,null,{"$f":"E8","v":0}]
["技術管理者",null,null,null,null,null,null,null,null,null,null,null,null,null,null,null,null,null,null,null,null,null,null,null,null,null,null,{"$f":"F9","v":0}]
[null,null,null,null,null,null,null,null,null,null,null,null,null,null,null,null,null,null,null,null,null,null,null,null,null,null,null,{"$f":"F10","v":0}]
[null,null,null,null,null,null,null,null,null,null,null,null,null,null,null,null,null,null,null,null,null,null,null,null,null,null,null,{"$f":"O10","v":0}]
["(機密保持)",null,"当センターは、試験業務を実行する過程で知り得たお客様の業務上の情報を、他に漏らさないことをお約束いたします。\n但し、以下の場合には当センターの判断で第三者に開示することがございます。",null,null,null,null,null,null,null,null,null,null,null,null,null,null,null,null,null,null,null,null,null,null,null,null,{"$f":"Q12","v":0}]
[null,null,"当センターがISO/IEC17025等の審査を受ける際に登録及び認定機関に対し依頼書等を審査資料として開示する場合。\n法令または官公署からの命令・要請等があった場合。",null,null,null,null,null,null,null,null,null,null,null,null,null,null,null,null,null,null,null,null,null,null,null,null,{"$f":"R15","v":0}]
[null,null,null,null,null,null,null,null,null,null,null,null,null,null,null,null,null,null,null,null,null,null,null,null,null,null,null,{"$f":"U15","v":0}]
[null,null,null,null,null,null,null,null,null,null,null,null,null,null,null,null,null,null,null,null,null,null,null,null,null,null,null,{"$f":"Q17","v":0}]
[null,null,null,null,null,null,null,null,null,null,null,null,null,null,null,null,null,null,null,null,null,null,null,null,null,null,null,{"$f":"Q18","v":0}]
[null,null,null,null,null,null,null,null,null,null,null,null,null,null,null,null,null,null,null,null,null,null,null,null,null,null,null,{"$f":"Q19","v":"00:00:00"}]
[null,null,null,null,null,null,null,null,null,null,null,null,null,null,null,null,null,null,null,null,null,null,null,null,null,null,null,{"$f":"Q20","v":"00:00:00"}]
[null,null,null,null,null,null,null,null,null,null,null,null,null,null,null,null,null,null,null,null,null,null,null,null,null,null,null,{"$f":"Q23","v":0}]
[null,null,null,null,null,null,null,null,null,null,null,null,null,null,null,null,null,null,null,null,null,null,null,null,null,null,null,{"$f":"Q24","v":0}]
[null,null,null,null,null,null,null,null,null,null,null,null,null,null,null,null,null,null,null,null,null,null,null,null,null,null,null,{"$f":"T24","v":0}]
[null,null,null,null,null,null,null,null,null,null,null,null,null,null,null,null,null,null,null,null,null,null,null,null,null,null,null,{"$f":"Q25","v":0}]
[null,null,null,null,null,null,null,null,null,null,null,null,null,null,null,null,null,null,null,null,null,null,null,null,null,null,null,{"$f":"Q26","v":0}]
[null,null,null,null,null,null,null,null,null,null,null,null,null,null,null,null,null,null,null,null,null,null,null,null,null,null,null,{"$f":"Q27","v":0}]
[null,null,null,null,null,null,null,null,null,null,null,null,null,null,null,null,null,null,null,null,null,null,null,null,null,null,null,{"$f":"Q29","v":0}]

{"sheet":"Sheet1","index":1,"n_rows":51,"n_cols":20,"rows_kept":51,"cut":false,"hidden":false,"merged":[]}
[]
[]
[]
[]
[]
["このファイルを開いたとき、上部の情報バーに黄色いメッセージがでた場合、以下の方法でセキュリティ許可をして、編集を有効にする必要があります"]
[]
["次の手順をメモして、現在のエクセルファイルを一旦閉じてください。下記１～４を操作後、右下の青色のボタン「試験依頼書を開く」をクリックしてください。"]
[]
["上記の表示が出ない場合は、そのまま右下の青色ボタン「試験依頼書を開く」をクリックしてください。尚、コンテンツ（マクロ）は有効にしてください。"]
[]
["１．試験依頼書のアイコンを右クリックします",null,null,null,null,null,null,null,"３．プロパティの下のほうの「セキュリティ」の「許可する」に☑を入れます",null,null,null,null,null,null,null,null,null,null,"４．再度、このファイルを開いて、上部の情報バーにコンテンツを有効にする要求が出た場合は"]
[null,null,null,null,null,null,null,null,null,null,null,null,null,null,null,null,null,null,null,"コンテンツを有効にしてください、下の青色のボタン「試験依頼書を開く」をクリックしてください。"]
[null,null,null,null,null,null,null,null,null,null,null,null,null,null,null,null,null,null,null,"尚、要求が無い場合も、下の青色のボタン「試験依頼書を開く」をクリックしてください。"]
[null,null,null,null,null,null,null,null,null,null,null,null,null,null,null,null,null,null,null,"これで、試験依頼書が開き使用可能となります"]
[]
[]
[]
[]
[]
[]
[]
["２．プロパティをクリックします"]
[]
[]
[]
[]
[]
[]
[]
[]
[]
[]
[]
[]
[]
[]
[]
[]
[]
[]
[]
[]
[]
[]
[null,null,null,null,null,null,null,null,null,null,null,null,null,null,null,null,"☑を入れます"]
[]
[]
[]
[]
[null,null,null,null,null,null,null,null,null,null,null,null,null,null,null,null,"「適用」　「OK」をクリックして閉じます"]